Cogmind - Beta 9.1 @@@ ROGUE MODE // 2019.11.05 @ 20:49:39 Player: fartblaster Result: Destroyed by G-47 Trooper with Particle Gun Performance ------------- Evolutions (0) 0 Regions Visited (1) 200 Robots Destroyed (3) 15 Value Destroyed (84) 84 Prototype IDs (0) 0 Alien Tech Used (0) 0 Bonus (0) 0 TOTAL SCORE: 299 Bonus ------- None Cogmind --------- Core Integrity 0/250 Matter 300/300 Energy 100/100 System Corruption 0% Temperature Cool (9) Location -10/Materials Parts ------- Power (1) Propulsion (2) Utility (2) Small Storage Unit Weapon (2) Inventory (6) Medium Matter Pod (60) Visual Processing Unit Signal Interpreter Grenade Launcher Peak State ------------ Power Light Ion Engine Propulsion Light Treads Light Treads Utility Small Storage Unit Tractor Beam Weapon Medium Laser Medium Laser Inventory Light Ion Engine Grenade Launcher [Rating: 7] Favorites ----------- Power Light Ion Engine Engine Light Ion Engine Propulsion Light Treads Treads Light Treads Utility Small Storage Unit Device Tractor Beam Storage Small Storage Unit Weapon Medium Laser Energy Gun Medium Laser Special Weapon Welding Torch Build | -11 -10 ------- Run | Scr Mat Slots Evolved . | . . Power . | . . Propulsion . | . . Utility . | . . Weapon . | . . Parts Attached 10 | 6 4 Power 2 | 1 1 Engine 2 | 1 1 Core . | . . Reactor . | . . Propulsion 2 | 2 . Treads 2 | 2 . Leg . | . . Wheel . | . . Hover . | . . Flight . | . . Utility 3 | 1 2 Device 2 | . 2 Storage 1 | 1 . Processor . | . . Hackware . | . . Protection . | . . Artifact . | . . Weapon 3 | 2 1 Energy Gun 2 | 2 . Energy Cannon . | . . Ballistic Gun . | . . Ballistic Cannon . | . . Launcher . | . . Special Weapon 1 | . 1 Impact Weapon . | . . Slashing Weapon . | . . Piercing Weapon . | . . Special Melee Weapon . | . . Unidentified Prototypes . | . . Parts Lost 9 | . 9 Power 2 | . 2 Propulsion 2 | . 2 Utility 2 | . 2 Weapon 3 | . 3 Highest Loss Streak 9 | . 9 Average Slot Usage (%) 78 | . 78 Engine 11 | . 11 Treads 25 | . 25 Device 6 | . 6 Storage 14 | . 14 Energy Gun 18 | . 18 Naked Turns . | . . Heaviest Build 12 | 11 12 Greatest Support 40 | 40 40 Greatest Overweight (x) 1 | . 1 Average Overweight (x) . | . . Largest Inventory Capacity 6 | 6 6 Average Capacity 5 | 5 6 Most Carried 5 | 1 5 Average Carried 2 | . 3 Final Capacity 6 | 6 6 Final Carried 4 | 1 4 Class Distribution -------------------- 100% | Mutant Dominant Class ---------------- Mutant | -10/Materials Resources | -11 -10 ----------- Run | Scr Mat Matter Collected 315 | 260 55 Remotely 31 | . 31 Salvage Created 96 | . 96 Parts 7 | . 7 Haulers Intercepted . | . . Recyclers Shooed . | . . Parts Field Recycled . | . . Retrieved Matter . | . . Parts Self-Destructed . | . . Prevented . | . . Kills | -11 -10 ------- Run | Scr Mat Combat Hostiles Destroyed 2 | . 2 Guns 2 | . 2 Classes Destroyed 2 | . 2 Watcher 1 | . 1 Grunt 2 | . 2 Best Kill Streak 2 | . 2 Combat Bots Only 2 | . 2 Max Kills in Single Turn 1 | . 1 Gunslinging . | . . Exploded . | . . Melee . | . . Uniques/NPCs Destroyed . | . . Combat | -11 -10 -------- Run | Scr Mat Damage Taken 882 | . 882 Core 259 | . 259 Absorbed by Shields . | . . Core Remaining (%) 100 | 100 . Volleys Fired 15 | . 15 Largest 2 | . 2 Hottest 100 | . 100 Shots Fired 25 | . 25 Gun 25 | . 25 Cannon . | . . Launcher . | . . Special . | . . Kinetic . | . . Thermal 25 | . 25 Explosive . | . . Electromagnetic . | . . Robot Hit Streak 13 | . 13 Robot Miss Streak 3 | . 3 Penetration Max . | . . Secondary Targets 1 | . 1 Max Gunslinging Chain 1 | . 1 Shots Hit Robots 17 | . 17 Core Hits 7 | . 7 Critical Hits . | . . Critical Kills . | . . Critical Parts Destroyed . | . . Melee Attacks . | . . Impact . | . . Slashing . | . . Piercing . | . . Sneak Attacks . | . . Combat Hostiles . | . . Follow-up Attacks . | . . Damage Inflicted 238 | . 238 Guns 238 | . 238 Cannons . | . . Explosions . | . . Melee . | . . Ramming . | . . Kinetic . | . . Thermal 238 | . 238 Explosive . | . . Electromagnetic . | . . Impact . | . . Slashing . | . . Piercing . | . . Highest Corruption . | . . Average Corruption . | . . Corruption Purged . | . . Overload Shots . | . . Overflow Damage . | . . Projectiles . | . . Explosions . | . . Melee . | . . Knockbacks . | . . Impact . | . . Kinetic . | . . Secondary . | . . Self-Inflicted Damage . | . . Shots . | . . Rammed . | . . Targets Rammed . | . . Kicked . | . . Crushed . | . . Highest Temperature 367 | . 367 Average Temperature 183 | . 183 Received Heat Transfer 501 | . 501 Effects 1 | . 1 Short Circuit 1 | . 1 Siege Activations . | . . Robots Corrupted . | . . Combat Hostiles . | . . Parts Fried . | . . Impact Corruptions . | . . Robots Melted . | . . Combat Hostiles . | . . Parts Melted 2 | . 2 Heat Transferred 703 | . 703 Parts Sabotaged . | . . Parts Stolen . | . . Parts Stripped . | . . Power Chain Reactions . | . . Missiles Intercepted . | . . Alert | -11 -10 ------- Run | Scr Mat Peak Influence 57 | . 57 Average Influence 7 | . 11 Maximum Alert Level . | . . Low Security (%) 100 | . . Level 1 . | . . Level 2 . | . . Level 3 . | . . Level 4 . | . . Level 5 . | . . High Security . | . . Max Security . | . . Squads Dispatched 1 | . 1 Investigation . | . . Extermination . | . . Reinforcement 1 | . 1 Assault . | . . Garrison . | . . Intercept . | . . Construction Impeded . | . . Haulers Reinforced . | . . Stealth | -11 -10 --------- Run | Scr Mat Distress Signals . | . . Communications Jammed . | . . Distress Signals . | . . Times Spotted 9 | . 9 Peak Tracking Total 4 | . 4 Tactical Retreats . | . . Traps | -11 -10 ------- Run | Scr Mat Traps Triggered . | . . Indirectly . | . . Trap Hack Attempts . | . . Triggered . | . . Disarmed . | . . Reprogrammed . | . . Reused . | . . Traps Extracted . | . . Installed . | . . Triggered . | . . Machines | -11 -10 ---------- Run | Scr Mat Machines Disabled . | . . Max in Single Turn . | . . Machines Sabotaged . | . . Garrisons Compromised . | . . Overloaded Fab Kills . | . . Fab Network Shutdowns . | . . Hacking | -11 -10 --------- Run | Scr Mat Machines Accessed . | . . Terminals . | . . Fabricators . | . . Repair Stations . | . . Recycling Units . | . . Scanalyzers . | . . Garrison Access . | . . Total Hacks . | . . Successful . | . . Failed . | . . Catastrophic . | . . Database Lockouts . | . . Manual . | . . Terminals . | . . Fabricators . | . . Repair Stations . | . . Recycling Units . | . . Scanalyzers . | . . Garrison Access . | . . Terminal Hacks . | . . Fabricator Hacks . | . . Repair Station Hacks . | . . Recycling Unit Hacks . | . . Scanalyzer . | . . Garrison Access Hacks . | . . Unauthorized Hacks . | . . Terminals . | . . Fabricators . | . . Repair Stations . | . . Recycling Units . | . . Scanalyzers . | . . Garrison Access . | . . Data Cores Recovered . | . . Used . | . . Hacking Detections . | . . Full Trace Events . | . . Feedback Events . | . . Feedback Blocked . | . . Robot Schematics Acquired . | . . Robots Built . | . . Matter . | . . Time . | . . Total Robot Build Rating . | . . Part Schematics Acquired . | . . Parts Built . | . . Matter . | . . Time . | . . Total Part Build Rating . | . . Parts Repaired . | . . Time . | . . Parts Recycled . | . . Recycled Matter . | . . Retrieved Matter . | . . Retrieved Components . | . . Parts Scanalyzed . | . . Part Schematics Acquired . | . . Parts Damaged . | . . Bothacking | -11 -10 ------------ Run | Scr Mat Used RIF Installer . | . . Robots Hacked . | . . Non-combat . | . . Combat . | . . Robot Hacks Applied . | . . Relay Couplers Released . | . . Robots Rewired . | . . Allies Hacked . | . . Hacks Repelled . | . . Allies | -11 -10 -------- Run | Scr Mat Total Allies . | . . Largest Group . | . . Highest-Rated Group . | . . Highest-Rated Ally . | . . Total Orders . | . . Ally Attacks . | . . Total Damage . | . . Kills . | . . Allies Corrupted . | . . Allies Melted . | . . Intel | -11 -10 ------- Run | Scr Mat Robot Analysis Total . | . . Derelict Logs Recovered . | . . Drone Launches . | . . Drone Recoveries . | . . Exploration | -11 -10 ------------- Run | Scr Mat Turns Passed 387 | 112 275 Spaces Moved 203 | 69 134 Core 13 | 7 6 Treads 190 | 62 128 Legs . | . . Wheels . | . . Hover . | . . Flight . | . . Fastest Speed 50 | 50 100 Average Speed 154 | 148 157 Slowest Speed 160 | 160 160 Overloaded Moves . | . . Propulsion Burnouts . | . . Robots Hopped . | . . Cave-ins Triggered . | . . Exploration Rate (%) 11 | 5 18 Regions Visited 1 Branch Regions . Pre-discovered Areas . | . . Known Exits Taken . | . . Unknown Exits Taken 1 | 1 . Scrap Searched . | . . Spaces Dug . | . . Terrain Destroyed . | . . Melee . | . . Projectile . | . . AOE . | . . Actions | -11 -10 --------- Run | Scr Mat Total 247 | 75 172 Wait 15 | . 15 Move 202 | 68 134 Hop . | . . Pick Up 5 | 1 4 Fast Attach 9 | 6 3 Attach 1 | . 1 Detach . | . . Swap . | . . Drop . | . . Fire 15 | . 15 Melee . | . . Ram . | . . Kick . | . . Crush . | . . Escape Stasis . | . . Rewire . | . . Trap . | . . Miscellaneous . | . . Route ------- -11/Scrapyard -10/Materials History --------- Turn | Location | Event 10 | -11/Scrapyard | Discovered new exit (range 15) 113 | -11/Scrapyard | Entered Materials 310 | -10/Materials | Build established: Mutant 359 | -10/Materials | Core integrity fell below 50% 383 | -10/Materials | Core integrity fell below 20% 388 | -10/Materials | Destroyed by G-47 Trooper with Particle Gun Last Messages --------------- 00288_ K-01 Serf collects debris. 00288_ R-06 Scavenger collects Aluminum Leg. 00293_ Overheating: Short circuit. 00293_ Lgt. Treads permanently disabled. 00293_ K-01 Serf collects debris. 00301_ Med. Laser destroyed. 00302_ U-05 Engineer destroyed. 00303_ K-01 Serf collects debris. 00331_ Lgt. Ion Engine destroyed. 00347_ K-01 Serf cleans the Material Processor. 00349_ Lgt. Ion Engine destroyed. 00353_ K-01 Serf cleans the Material Processor. 00355_ Acquired Welding Torch. 00358_ Acquired Terrain Scanner. 00360_ Acquired 24 matter. 00364_ Welding Torch destroyed. 00367_ Terrain Scanner destroyed. 00368_ Lgt. Treads destroyed. 00370_ U-05 Engineer lays Concrete. 00386_ G-34 Mercenary destroyed. Map ----- +----------------------------------------------------+ | | | | | | | | | | | | | | | | | | | | | | | | | | | | | ?????????#########???????????????????????????????? | | ?????????# !!! #???????????????????????????????? | | ?????????# !!! #???????????????????????????????? | | ?????????# ! ! #???????????????????????????????? | | ?????????# #???????????????????????????????? | | ?????????# #??????#????????????????????????? | | ?????????####+####??#????###########?????????????? | | ??????????# ########## #?????????????? | | ???#+###### # % #?????????????? | | # #?????????????? | | ??## ###### # """ #?????????????? | | ??????????# ##### g= @ """ " " #?????????????? | | ??????????### ###???# g%g# """ "R" #?????????????? | | ??????????###+####### [ # """ #?????????????? | | ??????????# # # #?????????????? | | ??????????# "# ###########?????????????? | | ??????????# T# #???????????????????????? | | ??????????# "#u! #???????????????????????? | | ??????????# """ # =#???????????????????????? | | ??????????# """ # #???????????????????????? | | ??????????# """ # #???????????????????????? | | ??????????# # ##??????????????????????? | | ???# ########+##### #??????????????????????? | | ???# T #??????????????????????? | | ???# ! #??????????????????????? | | ? #??????????????????????? | | ?? ###### #??????????????????????? | | ?? ?????????# %#####??????????????????????? | | ????????????# % #??????????????????????????? | | ????????????# #??????????????????????????? | | ????????????# """ #??????????????????????????? | | ????????????# """"" #??????????????????????????? | | ????????????# ^""""" #??????????????????????????? | | ????????????# """"" ??????????????????????????? | | ????????????# ???" #?????????????????????????? | | ????????????# ???? #?????????????????????????? | +----------------------------------------------------+ Best States ------------- Heat Dissipation 25 Energy Generation 10 Energy Capacity 125 Matter Stores 300 Matter Capacity 300 Sight Range 16 Terrain Scan Range 14 Terrain Scan Density 10 Evasion (%) 40 Recoil Reduction 2 Item Schematics ----------------- None Robot Schematics ------------------ None Fabricated ------------ Nothing Alien Tech Used ----------------- None Achievements -------------- None Challenges ------------ None Game ------ Seed FirePowerAccelerator Manual? 0 Play Time 00:06:01 Cumulative 12.2 hours Start 2019.11.05 @ 20:46:07 End 2019.11.05 @ 20:49:39 Sessions 1 Manual Loads 0 Difficulty Rogue Special Mode None Game No. 34 Rogue 34 Adventurer 0 Explorer 0 Win Type - Total 0 Types 0/0/0/0/0/0/0 Lore% 7 Gallery% 16 Achievement% 12 Wizard Run 0 Options --------- ASCII 0 Keyboard 1 Movement Numpad Keybinds 0 Fullscreen 1 Font 18/SmallcapsGlow Map View 76x50 Tactical HUD 1 Map Filters NONE Filters NONE Steam 1 RUN: 3d232dca-336a-413e-9ae4-fdfbd26ac9ae